bitfinex/quotes_ETHUSD_20250420
["timestamp","ask_amount","ask_price","bid_price","bid_amount"]
[1745148796965,0.7697,1569.0,1568.9,5.922]
[1745148797285,0.7697,1569.0,1568.6,3.105]
[1745148797580,0.7697,1569.0,1568.9,5.922]
[1745148798087,2.6723815,1569.1,1568.9,6.027]
[1745148798384,2.6723815,1569.1,1568.9,6.6297]
[1745148799170,2.6723815,1569.1,1568.9,5.922]
[1745148799374,0.7749,1569.0,1568.9,5.922]
[1745148799570,2.6723815,1569.0,1568.9,6.026]
[1745148801911,2.6723815,1569.0,1568.9,5.921]
[1745148808383,2.6723815,1569.0,1568.9,6.026]
[1745148808582,2.6723815,1569.0,1568.9,6.6286]
[1745148808783,2.6723815,1569.0,1568.9,61.2116]
[1745148810139,2.7723815,1569.4,1568.9,61.2116]
[1745148810479,2.7723815,1569.4,1569.0,0.105]
[1745148810681,0.1,1569.4,1569.0,0.105]
[1745148813823,0.1,1569.4,1569.0,3.0]
[1745148814128,0.1,1569.4,1569.1,0.105]
[1745148815639,0.1,1569.4,1569.2,0.105]
[1745148815791,0.1,1569.4,1569.3,8.887]
[1745148816135,0.1,1569.4,1569.3,5.887]
[1745148816295,0.1,1569.4,1569.3,6.4862]
[1745148822432,0.1,1569.4,1569.3,9.4862]
[1745148823726,0.1,1569.4,1569.3,9.64046549]
[1745148825825,0.1,1569.4,1569.3,9.5912]
[1745148826128,0.1,1569.4,1569.3,5.886]
[1745148826336,0.1,1569.4,1569.3,6.4746]
[1745148828143,0.1,1569.4,1569.3,9.4746]
[1745148830235,0.1,1569.4,1569.3,9.94260167]
[1745148833207,0.1,1569.4,1569.3,4.05660167]
[1745148835552,0.1,1569.4,1569.3,64.50060167]
[1745148839062,0.1,1569.4,1569.3,58.61460167]
[1745148839219,0.1,1569.4,1569.3,64.49760167]
[1745148846855,0.1,1569.4,1569.3,64.33829498]
[1745148847459,0.1,1569.4,1569.3,64.88829498]
[1745148849759,0.1,1569.4,1569.3,10.33029498]
[1745148850969,0.1,1569.4,1569.3,3.89729498]
[1745148851778,0.1,1569.4,1569.3,3.94653069]
[1745148851930,0.1,1569.4,1569.3,3.89729498]
[1745148852124,0.1,1569.4,1569.3,3.94652567]
[1745148852354,0.1,1569.4,1569.3,4.44729498]
[1745148854464,0.759,1569.9,1569.3,1.44729498]
[1745148854651,0.759,1569.9,1569.3,1.01800167]
[1745148855478,2.6723815,1570.0,1569.4,60.431]
[1745148855479,3.4699815,1570.0,1569.4,60.431]
[1745148855676,3.4699815,1570.0,1569.5,0.04922232]
[1745148856082,2.6723815,1570.0,1569.5,0.04922232]
[1745148856284,2.6723815,1570.0,1569.6,0.55]
[1745148856583,2.6723815,1570.0,1569.4,60.431]
[1745148856742,2.6723815,1570.0,1569.5,0.55]
[1745148858285,0.848,1570.2,1569.5,3.55]
[1745148860501,0.848,1570.2,1569.6,0.04919698]
[1745148860799,0.848,1570.2,1569.5,3.55]
[1745148861101,0.0504,1570.2,1569.5,3.55]
[1745148861492,0.0504,1570.2,1569.6,0.40418342]
[1745148861693,0.0504,1570.2,1569.6,0.355]
[1745148864862,0.0504,1570.2,1569.6,0.40417888]
[1745148865611,0.0504,1570.2,1569.7,3.55]
[1745148865808,0.0504,1570.2,1569.9,3.55]
[1745148865983,0.0504,1570.2,1570.0,0.355]
[1745148866491,0.0504,1570.2,1570.0,0.83387556]
[1745148866663,0.0504,1570.2,1570.0,0.355]
[1745148868508,0.0504,1570.2,1570.1,0.04916851]
[1745148868800,0.0504,1570.2,1570.0,0.67139047]
[1745148869569,0.0504,1570.2,1570.0,1.15875267]
[1745148869861,0.0504,1570.2,1570.1,0.59915312]
[1745148870075,0.0504,1570.2,1570.1,0.55]
[1745148870467,0.0504,1570.2,1570.0,0.80375267]
[1745148870683,0.0504,1570.2,1569.9,0.55]
[1745148870881,0.0504,1570.2,1569.8,0.55]
[1745148871276,0.0504,1570.2,1569.9,0.04915904]
[1745148871596,0.0504,1570.2,1569.9,0.52874976]
[1745148871782,0.0504,1570.2,1569.7,0.55]
[1745148871983,0.0504,1570.2,1569.7,0.9605]
[1745148872893,0.0504,1570.2,1569.8,0.04916031]
[1745148873104,0.0504,1570.2,1569.8,0.65002933]
[1745148873274,0.0504,1570.2,1569.7,0.9605]
[1745148874308,0.0504,1570.2,1569.7,1.27059469]
[1745148875076,0.0504,1570.2,1569.7,1.74747219]
[1745148875501,0.0504,1570.2,1570.0,0.55]
[1745148875678,0.0504,1570.2,1570.0,0.905]
[1745148877113,0.0504,1570.2,1570.0,0.355]
[1745148878620,0.0504,1570.2,1570.1,0.04916094]
[1745148879118,0.0504,1570.2,1570.1,0.52718857]
[1745148879414,0.0504,1570.2,1570.1,0.47802763]
[1745148879715,0.0504,1570.2,1570.1,0.04916138]
[1745148880420,0.0504,1570.2,1570.1,0.0491631]
[1745148880609,0.0504,1570.2,1570.0,0.355]
[1745148881217,0.0504,1570.2,1570.1,0.04916145]
[1745148882834,0.0504,1570.2,1570.1,0.52022936]
[1745148883423,0.0504,1570.2,1570.1,0.47106791]
[1745148883593,0.0504,1570.2,1569.9,0.55]
[1745148883793,0.0504,1570.2,1569.7,1.84750152]
[1745148884029,0.0504,1570.2,1569.8,0.55]
[1745148884190,0.8284,1570.2,1569.7,1.19747219]
[1745148884390,0.8284,1570.2,1569.7,0.78697219]
[1745148884694,0.8284,1570.2,1569.5,0.55]
[1745148884895,0.8284,1570.2,1569.6,0.55]
[1745148885524,0.8284,1570.2,1569.8,3.0]
[1745148888419,0.8284,1570.2,1569.8,3.48460291]
[1745148889033,0.8284,1570.2,1569.9,0.34846029]
[1745148892975,0.8284,1570.2,1570.0,0.0491886]
[1745148893140,0.0504,1570.2,1570.1,8.876]
[1745148895646,0.0504,1570.2,1570.1,8.92516399]
[1745148895942,0.0504,1570.2,1570.1,8.876]
[1745148896138,0.0504,1570.2,1570.1,9.7636]
[1745148896344,0.0504,1570.2,1570.1,9.81276841]
[1745148896633,0.0504,1570.2,1570.1,9.7636]
[1745148896855,0.0504,1570.2,1570.1,64.2886]
[1745148901157,0.0504,1570.2,1570.1,65.52319996]
[1745148901354,0.0504,1570.2,1570.1,5.08762933]
[1745148901658,0.1,1570.4,1570.2,0.55]
[1745148901955,0.1,1570.4,1570.2,1.02175627]
[1745148904466,0.1,1570.4,1570.3,0.04914067]
[1745148904640,0.1,1570.4,1570.2,1.02175627]
[1745148904843,0.1,1570.4,1570.3,0.04914078]
[1745148905041,0.1,1570.4,1570.2,1.02175627]
[1745148905364,0.1,1570.4,1570.3,60.389]
[1745148905534,0.1,1570.4,1570.3,64.66568914]
[1745148908434,0.1,1570.4,1570.3,10.14668914]
[1745148910466,0.1,1570.4,1570.3,4.27668914]
[1745148910653,0.1,1570.4,1570.3,3.0]
[1745148915368,0.1,1570.4,1570.3,63.38]
[1745148918076,0.1,1570.4,1570.3,8.869]
[1745148922042,0.1,1570.4,1570.3,3.0]
[1745148925353,0.1,1570.4,1570.3,63.38]
[1745148926888,0.1,1570.4,1570.3,57.511]
[1745148927094,0.1,1570.4,1570.3,60.38]
[1745148927095,0.882,1570.4,1570.3,60.38]
[1745148927293,0.882,1570.4,1570.3,63.38]
[1745148929295,0.882,1570.4,1570.3,2.95]
[1745148932195,1.41802712,1570.4,1570.3,2.95]
[1745148935473,1.41802712,1570.4,1570.3,63.328]
[1745148935672,0.882,1570.4,1570.3,63.328]
[1745148945312,0.882,1570.4,1570.3,57.465]
[1745148945538,0.882,1570.4,1570.3,60.379]
[1745148961286,0.882,1570.4,1570.3,62.89174943]
[1745148961492,0.1,1570.4,1570.3,60.379]
[1745148961821,0.1,1570.4,1570.3,63.379]
[1745148963694,0.7579,1571.0,1570.3,65.16359996]
[1745148963892,0.7579,1571.0,1570.4,4.23459996]
[1745148964118,0.50224662,1570.9,1570.5,0.42346]
[1745148964331,0.50224662,1570.9,1570.5,0.89600003]
[1745148964532,4.93271229,1571.1,1570.5,0.42346]
[1745148964748,0.50224662,1570.8,1570.5,0.42346]
[1745148964970,0.7579,1571.1,1570.5,0.42346]
[1745148965256,0.50463547,1570.7,1570.5,0.47258555]
[1745148965454,0.7579,1571.1,1570.5,0.47258555]
[1745148965754,0.7579,1571.1,1570.5,0.42346]
[1745148965922,0.7818,1570.9,1570.6,5.857]
[1745148967031,0.15920524,1570.6,1570.5,0.42346]
[1745148967210,0.15920524,1570.6,1570.5,6.32961115]
[1745148967739,0.15920524,1570.6,1570.5,9.32961115]
[1745148968406,0.15920524,1570.6,1570.5,9.28046]
[1745148969338,0.15920524,1570.6,1570.5,9.32959595]
[1745148970140,0.15920524,1570.6,1570.5,9.80792284]
[1745148970344,0.15920524,1570.6,1570.5,9.75878689]
[1745148970844,0.66416642,1570.6,1570.5,9.75878689]
[1745148971034,0.15920524,1570.6,1570.5,9.75878689]
[1745148971342,0.15920524,1570.6,1570.5,3.90178689]
[1745148971645,0.66427498,1570.6,1570.5,3.90178689]
[1745148973542,0.66427498,1570.6,1570.5,4.45178689]
[1745148975166,1e-08,1570.6,1570.5,4.45178689]
[1745148975320,3.4630815,1571.2,1570.5,64.81578689]
[1745148975522,0.46298059,1570.6,1570.5,64.39232689]
[1745148975761,3.4630815,1571.2,1570.5,64.39232689]
[1745148977263,3.4630815,1571.2,1570.5,64.25392689]
[1745148981022,2.6723815,1571.2,1570.6,0.04910586]
[1745148983526,2.6723815,1571.2,1570.5,64.25392689]
[1745148983955,2.6723815,1571.2,1570.6,0.04910387]
[1745148984249,2.6723815,1571.2,1570.7,0.55]
[1745148985023,0.3976185,1571.3,1570.9,0.55]
[1745148985224,0.3976185,1571.3,1571.1,3.0]
[1745148985549,0.3976185,1571.3,1571.2,8.855]
[1745148985948,1.61707626,1571.3,1571.2,8.855]
[1745148986154,1.1493185,1571.3,1571.2,8.855]
[1745148986356,1.61859568,1571.3,1571.2,8.855]
[1745148987463,0.86689568,1571.3,1571.2,8.855]
[1745148988164,0.86689568,1571.3,1571.2,9.7405]
[1745148989046,0.3976185,1571.3,1571.2,9.7405]
[1745148991066,0.3976185,1571.3,1571.2,64.2365]
[1745148993362,0.3976185,1571.3,1571.2,63.351]
[1745148994475,1.1603185,1571.3,1571.2,63.351]
[1745148997591,0.3976185,1571.3,1571.2,63.351]
[1745148998447,1.1603185,1571.3,1571.2,60.351]
[1745149000656,0.3976185,1571.3,1571.2,60.351]
[1745149001290,0.3976185,1571.3,1571.2,63.351]
[1745149007521,1.1630185,1571.3,1571.2,60.343]
[1745149013326,0.3976185,1571.3,1571.2,63.343]
[1745149014137,0.3976185,1571.3,1571.2,60.343]
[1745149014314,1.1630185,1571.3,1571.2,60.343]
[1745149016496,3.8354,1571.3,1571.2,60.343]
[1745149019640,3.07,1571.3,1571.2,60.343]
[1745149023351,3.07,1571.3,1571.2,63.343]
[1745149024549,3.8331,1571.3,1571.2,60.343]
[1745149030661,3.8331,1571.3,1571.2,54.496]
[1745149030836,4.3094313,1571.3,1571.2,60.336]
[1745149031037,4.28199919,1571.3,1571.2,60.336]
[1745149032970,3.8331,1571.3,1571.2,60.336]
[1745149035635,4.3831,1571.3,1571.2,60.336]
[1745149035835,4.85758665,1571.3,1571.2,60.336]
[1745149038545,5.33183467,1571.3,1571.2,60.336]
[1745149043880,4.85758665,1571.3,1571.2,60.336]
[1745149044055,5.39656036,1571.3,1571.2,60.336]
[1745149044460,5.47816036,1571.3,1571.2,60.336]
[1745149045451,4.92816036,1571.3,1571.2,60.336]
[1745149045742,3.9147,1571.3,1571.2,60.336]
[1745149046087,4.38571398,1571.3,1571.2,60.336]
[1745149052602,4.93571398,1571.3,1571.2,60.336]
[1745149053803,5.41003075,1571.3,1571.2,60.336]
[1745149054172,6.00424887,1571.3,1571.2,60.336]
[1745149055677,9.00424887,1571.3,1571.2,60.336]
[1745149056368,9.35683871,1571.3,1571.2,60.336]
[1745149065307,9.35683871,1571.3,1571.2,54.496]
[1745149065499,9.35683871,1571.3,1571.2,60.331]
[1745149065674,7.0169815,1571.2,1571.1,54.509]
[1745149065874,7.23763577,1571.2,1570.0,0.47739099]
[1745149066080,0.7946,1570.9,1570.0,1.28959996]
[1745149066275,0.7946,1570.6,1570.0,1.28959996]
[1745149066481,2.75197974,1570.5,1570.0,1.60905589]
[1745149066681,2.75197974,1570.5,1570.0,0.96948526]
[1745149066980,0.45931837,1570.4,1570.0,1.60905589]
[1745149067702,3.45282968,1570.4,1570.0,0.31945593]
[1745149067906,0.07960824,1570.3,1569.7,1.76317831]
[1745149068278,0.45931837,1570.2,1569.7,1.76317831]
[1745149068681,0.45931837,1570.2,1569.7,1.12360768]
[1745149069109,0.45931837,1570.2,1569.7,0.65002933]
[1745149069475,0.45931837,1570.2,1569.5,0.63957063]
[1745149070298,3.13169987,1570.2,1569.5,0.63957063]
[1745149070512,0.07961284,1570.1,1569.4,0.65002933]
[1745149070803,0.84931054,1570.1,1569.2,1.28959996]
[1745149071582,0.84931054,1570.1,1569.4,0.31334845]
[1745149071788,3.9759815,1570.0,1568.5,0.8357]
[1745149072116,3.19971642,1569.9,1569.0,0.32002554]
[1745149072612,3.74971642,1569.9,1569.0,0.32002554]
[1745149072793,4.50331642,1569.9,1568.3,6.9657]
[1745149072980,4.95364806,1569.9,1568.4,0.59929624]
[1745149073187,4.95364806,1569.9,1568.4,0.55]
[1745149073589,4.95364806,1569.9,1569.0,0.31550031]
[1745149074715,4.95364806,1569.9,1569.0,0.78883809]
[1745149075511,4.95364806,1569.9,1569.8,60.37381676]
[1745149075812,4.50595079,1569.9,1569.8,60.37381676]
[1745149076313,4.95049662,1569.9,1569.8,60.37381676]
[1745149080209,4.50595079,1569.9,1569.8,60.37381676]
[1745149080408,4.95049662,1569.9,1569.8,60.37381676]
[1745149080761,7.50595079,1569.9,1569.8,60.37381676]
[1745149081234,7.95049662,1569.9,1569.8,60.37381676]
[1745149084240,3.19656498,1569.9,1569.8,61.01338739]
[1745149084427,3.19656498,1569.9,1569.8,60.37]
[1745149084746,2.75201915,1569.9,1569.8,60.37]
[1745149085541,3.55421915,1569.9,1569.8,60.37]
[1745149085942,3.98615565,1569.9,1569.8,60.37]
[1745149086145,4.50283472,1569.9,1569.8,60.37]
[1745149086450,4.93477122,1569.9,1569.8,60.37]
[1745149087128,0.55,1569.7,1568.8,0.31980692]
[1745149087314,2.75203313,1569.6,1568.9,60.385]
[1745149087514,2.75203313,1569.6,1569.0,0.04930322]
[1745149087910,2.75203313,1569.6,1568.9,61.02457063]
[1745149088265,2.75203313,1569.6,1569.0,0.04930324]
[1745149088738,2.75203313,1569.6,1568.9,61.02457063]
[1745149088914,2.75203313,1569.6,1568.9,60.385]
[1745149090237,2.75203313,1569.6,1569.0,0.65002933]
[1745149090750,2.75203313,1569.6,1568.9,60.86636605]
[1745149091046,0.4319365,1569.5,1568.9,60.86636605]
[1745149091341,2.75203313,1569.6,1568.9,60.86636605]
[1745149091543,0.4319365,1569.4,1568.9,60.86636605]
[1745149091735,0.8022,1569.5,1569.0,5.832]
[1745149092544,2.75203313,1569.6,1569.0,5.832]
[1745149092750,0.4319365,1569.4,1569.1,0.5832]
[1745149093050,2.6723815,1569.5,1569.1,0.5832]
[1745149095727,0.07965153,1569.4,1569.1,0.5832]
[1745149096750,2.6723815,1569.5,1569.1,0.5832]
[1745149097355,2.6723815,1569.5,1569.2,54.559]
[1745149101152,2.6723815,1569.5,1569.3,0.04929291]
[1745149101345,2.83150568,1569.8,1569.4,5.833]
[1745149103460,0.83233357,1569.7,1569.4,5.833]
[1745149103761,0.43019652,1569.6,1569.4,5.833]
[1745149104057,0.83233357,1569.7,1569.4,5.833]
[1745149104255,1.19871749,1569.7,1569.4,5.833]
[1745149104554,3.10257802,1569.6,1569.4,5.833]
[1745149104762,2.6723815,1569.6,1569.4,5.833]
[1745149105460,0.87454476,1569.5,1569.4,5.833]
[1745149105957,1.30506754,1569.5,1569.4,5.833]
[1745149106137,1.70281244,1569.5,1569.4,5.833]
[1745149107459,1.27228966,1569.5,1569.2,54.559]
[1745149107644,1.27228966,1569.5,1569.4,5.833]
[1745149108047,0.87454476,1569.5,1569.4,5.833]
[1745149108246,1.22509653,1569.5,1569.4,5.833]
[1745149108564,0.7949,1569.5,1569.4,5.833]
[1745149110350,0.7949,1569.5,1569.4,60.394]
[1745149111965,1.59393419,1569.7,1569.4,60.394]
[1745149112342,1.22755027,1569.7,1569.4,60.394]
[1745149112539,6.42299714,1569.7,1569.4,61.68359996]
[1745149112747,6.07,1569.7,1569.5,1.28959996]
[1745149113170,6.07,1569.7,1569.5,1.3388661]
[1745149114077,6.07,1569.7,1569.5,1.28959996]
[1745149114285,0.15912418,1570.0,1569.5,1.28959996]
[1745149114667,0.34743868,1569.9,1569.6,0.0492409]
[1745149114884,0.15912418,1570.0,1569.5,1.28959996]
[1745149115376,0.15912418,1570.0,1569.5,4.28959996]
[1745149115597,0.15912418,1570.0,1569.6,0.42896]
[1745149121677,0.15912418,1570.0,1569.7,0.04923561]
[1745149121981,0.15912418,1570.0,1569.8,5.824]
[1745149123152,0.15912418,1570.0,1569.8,5.87323572]
[1745149124653,0.97132418,1570.0,1569.9,5.824]
[1745149124848,7.04132418,1570.0,1569.9,5.824]
[1745149125083,8.2954566,1570.0,1569.9,5.824]
[1745149126686,8.65268087,1570.0,1569.9,5.824]
[1745149128285,7.39854845,1570.0,1569.9,5.824]
[1745149129383,7.39854845,1570.0,1569.9,60.37]
[1745149130869,6.58634845,1570.0,1569.9,60.37]
[1745149131184,6.22912418,1570.0,1569.9,60.37]
[1745149131384,6.22912418,1570.0,1569.9,61.00957063]
[1745149132289,6.22912418,1570.0,1569.9,60.37]
[1745149132855,0.7877,1569.9,1569.6,1.28959996]
[1745149133093,0.7877,1569.7,1569.4,54.547]
[1745149133324,0.7877,1569.7,1569.5,5.824]
[1745149133325,0.86734646,1569.7,1569.5,5.824]
[1745149134298,6.93734444,1569.8,1569.5,5.824]
[1745149135058,0.32216256,1569.7,1569.5,5.824]
[1745149135862,0.07963886,1569.6,1569.5,5.824]
[1745149136791,0.07964394,1569.7,1569.5,5.824]
[1745149137094,0.32216256,1569.6,1569.5,5.824]
[1745149137297,0.07964394,1569.7,1569.5,5.824]
[1745149140694,6.22912418,1569.8,1569.5,5.824]
[1745149140896,0.32216256,1569.7,1569.5,5.824]
[1745149141076,6.22912418,1569.8,1569.5,5.824]
[1745149141275,0.32085553,1569.7,1569.5,5.824]
[1745149141483,6.22912418,1569.8,1569.5,5.87326126]
[1745149141689,6.22912418,1569.8,1569.6,0.58732613]
[1745149141899,6.22912418,1569.8,1569.6,0.63657488]
[1745149142286,0.15912418,1569.8,1569.6,0.63657488]
[1745149142495,0.15912418,1569.8,1569.6,0.58732613]
[1745149143299,0.14485918,1569.8,1569.6,0.58732613]
[1745149144704,0.14485918,1569.8,1569.6,3.58732613]
[1745149144899,0.14485918,1569.8,1569.7,0.35873261]
[1745149145107,0.14485918,1569.8,1569.5,5.824]
[1745149145608,0.07963314,1569.7,1569.5,5.824]
[1745149145904,0.7827,1569.6,1569.5,5.824]
[1745149148475,6.8527,1569.6,1569.5,5.824]
[1745149153014,6.07,1569.6,1569.5,5.824]
[1745149153325,6.39085553,1569.6,1569.5,5.824]
[1745149156321,6.07,1569.6,1569.5,5.824]
[1745149157199,6.21485918,1569.8,1569.5,5.824]
[1745149157401,0.3212912,1569.6,1569.5,5.824]
[1745149157716,0.07963531,1569.7,1569.5,5.824]
[1745149160341,0.7545,1569.6,1569.5,5.824]
[1745149161414,1.0757912,1569.6,1569.5,5.824]
[1745149163127,7.1457912,1569.6,1569.5,5.824]
[1745149163352,7.22543915,1569.6,1569.5,5.824]
[1745149164203,7.1457912,1569.6,1569.5,5.824]
[1745149167036,8.41037032,1569.6,1569.5,5.824]
[1745149167614,7.86037032,1569.6,1569.5,5.824]
[1745149169339,8.41037032,1569.6,1569.5,5.824]
[1745149173442,8.76720826,1569.6,1569.5,5.824]
[1745149174938,6.07,1569.5,1569.4,54.547]
[1745149175144,9.00707274,1569.5,1569.4,60.362]
[1745149175350,9.36391068,1569.5,1569.4,60.362]
[1745149178339,0.55,1569.4,1569.3,0.00381676]
[1745149178541,4.3618,1569.4,1569.3,5.81881676]
[1745149178751,6.27152665,1569.4,1569.3,5.81881676]
[1745149183768,12.34152665,1569.4,1569.3,5.81881676]
[1745149184517,11.98468871,1569.4,1569.3,5.81881676]
[1745149184715,8.43468871,1569.4,1569.3,5.81881676]
[1745149184954,7.19829764,1569.4,1569.3,5.81881676]
[1745149187545,7.74829764,1569.4,1569.3,5.81881676]
[1745149190063,7.74829764,1569.4,1569.3,5.815]
[1745149192567,7.74829764,1569.4,1569.3,60.388]
[1745149192865,8.10476371,1569.4,1569.3,60.388]
[1745149193068,8.92320671,1569.4,1569.3,60.388]
[1745149199868,6.74296371,1569.4,1569.3,60.388]
[1745149200387,6.38649764,1569.4,1569.3,60.388]
[1745149200917,6.07,1569.4,1569.3,60.388]
[1745149201092,6.14964706,1569.7,1569.3,60.388]
[1745149201239,0.25681427,1569.6,1569.3,60.388]
[1745149205349,0.8247,1569.5,1569.3,60.388]
[1745149205548,0.07965094,1569.4,1569.3,60.388]
[1745149206874,6.14965094,1569.4,1569.3,60.388]
[1745149207173,6.95875731,1569.4,1569.3,60.388]
[1745149207373,0.158404,1569.3,1568.2,22.14585507]
[1745149207573,0.158404,1569.3,1568.4,60.87794182]
[1745149207574,6.07,1569.2,1568.4,60.87794182]
[1745149207781,6.07,1569.2,1568.5,0.04933394]
[1745149208077,6.07,1569.2,1568.5,0.50394182]
[1745149208282,0.07966705,1569.1,1568.5,0.50394182]
[1745149209313,6.07,1569.2,1568.5,0.50394182]
[1745149209676,0.25910637,1569.1,1568.5,0.50394182]
[1745149209875,6.07,1569.2,1568.4,60.83940996]
[1745149210075,0.25910637,1569.0,1568.4,60.83940996]
[1745149210276,6.07,1569.2,1568.4,60.83940996]
[1745149210470,0.07966701,1569.1,1568.4,60.83940996]
[1745149211891,6.14966701,1569.1,1568.4,60.83940996]
[1745149212496,6.97436701,1569.1,1568.4,60.83940996]
[1745149214514,0.7514,1568.9,1568.4,54.565]
[1745149214688,6.14968718,1568.8,1568.5,5.81]
[1745149215089,0.7514,1568.7,1568.5,5.81]
[1745149215504,0.2514,1568.7,1568.5,5.81]
[1745149218316,0.25637767,1568.6,1568.5,5.81]
[1745149218492,0.2514,1568.7,1568.5,5.81]
[1745149218812,6.07,1568.6,1568.5,5.81]
[1745149219013,6.32637767,1568.6,1568.5,5.81]
[1745149219193,6.07,1568.6,1568.5,5.81]
[1745149221275,6.70214,1568.6,1568.5,5.81]
[1745149221511,7.46214,1568.6,1568.5,5.81]
[1745149222180,0.76,1568.5,1568.4,54.565]
[1745149222381,6.90970056,1568.5,1568.4,60.376]
[1745149225583,6.14970056,1568.5,1568.4,60.376]
[1745149225784,6.07,1568.5,1568.4,60.376]
[1745149227583,6.07,1568.6,1568.4,60.376]
[1745149227987,0.23529238,1568.5,1568.4,60.376]
[1745149228399,6.07,1568.6,1568.4,60.376]
[1745149228822,0.23529238,1568.5,1568.4,60.376]
[1745149229125,6.07,1568.6,1568.4,60.376]
[1745149229626,0.23529238,1568.5,1568.4,60.376]
[1745149229801,6.07,1568.6,1568.4,60.376]
[1745149230000,0.8737949,1568.5,1568.4,60.376]
[1745149231765,1.4237949,1568.5,1568.4,60.376]
[1745149232126,1.96022292,1568.5,1568.4,60.376]
[1745149232820,8.03022292,1568.5,1568.4,54.565]
[1745149233147,4.3441,1568.4,1568.3,0.00381676]
[1745149233350,5.44712229,1568.4,1568.3,5.81681676]
[1745149233565,6.46317951,1568.4,1568.3,5.81681676]
[1745149233765,6.86028324,1568.2,1568.1,0.1]
[1745149234161,10.41028324,1568.2,1568.1,5.913]
[1745149234472,10.94594637,1568.2,1568.1,5.913]
[1745149234621,12.40248128,1568.2,1568.1,5.913]
[1745149234830,12.60248128,1568.2,1568.1,5.913]
[1745149235025,0.55,1568.0,1567.1,0.1]
[1745149235274,0.7941,1567.6,1567.1,0.1]
[1745149235472,6.66870719,1567.5,1567.2,60.409]
[1745149235678,6.1459427,1567.5,1567.2,60.409]
[1745149236630,0.7941,1567.4,1567.2,60.409]
[1745149236836,0.60252585,1567.3,1567.2,60.409]
[1745149237052,0.07976136,1567.3,1567.2,60.409]
[1745149237236,0.87386416,1567.4,1567.2,60.409]
[1745149239272,6.06618324,1567.5,1567.3,0.04950981]
[1745149239572,6.06618324,1567.5,1567.3,0.0494936]
[1745149239788,6.06618324,1567.5,1567.2,61.009]
[1745149240778,6.06618324,1567.5,1567.4,0.6]
[1745149241278,6.06618324,1567.9,1567.4,0.6]
[1745149241597,6.06618324,1567.9,1567.6,0.6]
[1745149241866,6.06618324,1567.9,1567.8,0.6]
[1745149242067,6.06618324,1567.9,1567.8,6.409]
[1745149243757,6.06618324,1567.9,1567.8,5.809]
[1745149244866,6.85178324,1567.9,1567.8,5.809]
[1745149246567,7.40178324,1567.9,1567.8,5.809]
[1745149247051,7.8671912,1567.9,1567.8,5.809]
[1745149248141,7.40178324,1567.9,1567.8,5.809]
[1745149248875,8.14196156,1567.9,1567.8,5.809]
[1745149249586,9.14125151,1567.9,1567.8,5.809]
[1745149249988,0.55,1567.6,1567.2,55.196]
[1745149250157,6.06618324,1567.5,1567.3,5.809]
[1745149255663,7.42068324,1567.4,1567.3,5.809]
[1745149255862,6.06618324,1567.4,1567.3,5.809]
[1745149256196,6.06618324,1567.4,1567.3,6.409]
[1745149259559,6.06618324,1567.4,1567.3,9.409]
[1745149260064,6.06618324,1567.9,1567.5,0.6]
[1745149260266,0.42524435,1567.8,1567.5,0.6]
[1745149260493,6.06618324,1567.9,1567.6,0.6]
[1745149260692,6.06618324,1567.9,1567.7,5.81]
[1745149261086,6.87068324,1567.9,1567.7,5.81]
[1745149261285,0.42524435,1567.8,1567.7,5.81]
[1745149261596,6.87068324,1567.9,1567.7,5.81]
[1745149261968,0.42524435,1567.8,1567.7,5.81]
[1745149262167,6.87068324,1567.9,1567.7,5.81]
[1745149262995,6.06618324,1567.9,1567.7,5.81]
[1745149264504,6.06618324,1567.9,1567.7,6.451]
[1745149266190,6.06618324,1567.9,1567.7,5.81]
[1745149270906,0.42524435,1567.8,1567.7,5.81]
[1745149271123,6.06618324,1567.9,1567.7,60.43]
[1745149271510,0.42524435,1567.8,1567.7,60.43]
[1745149271695,6.06618324,1567.9,1567.7,60.43]
[1745149273213,6.67280156,1567.9,1567.7,60.43]
[1745149274314,6.06618324,1567.9,1567.7,60.43]
[1745149275733,0.42744352,1567.8,1567.7,60.43]
[1745149276185,6.06618324,1567.9,1567.7,60.43]
[1745149276511,0.42744352,1567.8,1567.7,60.43]
[1745149276716,6.06618324,1567.9,1567.7,60.43]
[1745149277012,0.42744352,1567.8,1567.7,60.43]
[1745149277514,6.06618324,1567.8,1567.7,60.43]
[1745149279212,6.75357156,1567.8,1567.7,60.43]
[1745149279617,6.06618324,1567.8,1567.7,60.43]
[1745149280712,6.49604581,1567.8,1567.7,60.43]
[1745149282095,6.49604581,1567.8,1567.7,61.03]
[1745149283386,6.06618324,1567.8,1567.7,61.03]
[1745149285396,6.06618324,1567.8,1567.7,60.43]
[1745149292626,6.49660314,1567.8,1567.7,60.43]
[1745149293126,7.77384345,1567.8,1567.7,60.43]
[1745149293630,7.22384345,1567.8,1567.7,60.43]
[1745149293809,6.49660314,1567.8,1567.7,60.43]
[1745149295107,6.49660314,1567.8,1567.7,61.03]
[1745149295532,0.4304199,1567.8,1567.7,61.03]
[1745149295737,6.06618324,1568.1,1567.9,0.6]
[1745149296108,0.3942007,1568.0,1567.9,0.6]
[1745149296309,6.06618324,1568.1,1567.9,0.96]
[1745149296510,0.3942007,1568.0,1567.9,0.96]
[1745149296710,6.06618324,1568.1,1567.9,0.96]
[1745149296910,0.3942007,1568.0,1567.9,0.96]
[1745149297236,6.06618324,1568.1,1567.9,0.96]
[1745149297548,0.3942007,1568.0,1567.9,0.96]
[1745149298044,6.06618324,1568.1,1567.9,0.96]